fUSD/lending_fUSD_20240829
["ID","MTS","AMOUNT","RATE_DAILY","PERIOD"]
[336593760,1724961046192,-2238.27476078,0.00011,2]
[336593762,1724961046204,-266.39857557,0.00011,2]
[336593765,1724961046215,-1434.79165165,0.00011,2]
[336593767,1724961046226,-569.62893995,0.00011,2]
[336593769,1724961046238,-2034.9400001,0.00011,2]
[336593771,1724961046250,-746.22474826,0.00011,2]
[336593773,1724961046261,-1306.89059751,0.00011,2]
[336593776,1724961046272,-2087.08,0.00011,2]
[336593778,1724961046284,-3651.45990221,0.00011,2]
[336593780,1724961046295,-5989.0542,0.00011,2]
[336593782,1724961046306,-4815.62684602,0.00011,2]
[336593784,1724961046317,-500.0,0.00011,2]
[336593788,1724961046347,-6676.43119304,0.00011,2]
[336593790,1724961046360,-501.09368611,0.00011,2]
[336593791,1724961046371,-2457.38273895,0.00011,2]
[336593802,1724961046464,-2043.37005665,0.00011,2]
[336593804,1724961046475,-3187.19048631,0.00011,2]
[336593806,1724961046486,-1303.17693193,0.00011,2]
[336593808,1724961046497,-48751.96682396,0.00011,2]
[336593810,1724961046508,-6154.01807628,0.00011,2]
[336593812,1724961046519,-1278.44042038,0.00011,2]
[336593815,1724961046531,-8212.42891304,0.00011,2]
[336593820,1724961046576,-6653.2513662,0.00011,2]
[336593872,1724961047070,-371.08009368,0.00011,2]
[336593874,1724961047081,-1865.23497668,0.00011,2]
[336593876,1724961047092,-584.95999,0.00011,2]
[336593879,1724961047103,-1573.95823334,0.00011,2]
[336593881,1724961047114,-520.42458624,0.00011,2]
[336593883,1724961047125,-1499.90008,0.00011,2]
[336593885,1724961047136,-493.09011844,0.00011,2]
[336593886,1724961047148,-23938.32502418,0.00011,2]
[336593887,1724961047162,-1972.1288162,0.00011,2]
[336593888,1724961047175,-50180.900616,0.00011,2]
[336593890,1724961047186,-3987.91705982,0.00011,2]
[336593893,1724961047197,-765.67486631,0.00011,2]
[336593895,1724961047209,-324.95834368,0.00011,2]
[336593897,1724961047219,-1384.9877526,0.00011,2]
[336593899,1724961047231,-2630.82659408,0.00011,2]
[336593902,1724961047243,-924.64607863,0.00011,2]
[336594430,1724961150810,152.52,0.00010959,2]
[336594431,1724961240052,172.00474581,0.000109,2]
[336594432,1724961255228,865.39221263,0.00010899,2]
[336594433,1724961315767,6052.46031189,0.000109,2]
[336594434,1724961475483,355.51,0.00010519,2]
[336594435,1724961648768,206.28,0.00010959,2]
[336594437,1724961737318,160.36941333,0.000109,2]
[336594438,1724961743987,5447.21428071,0.000109,2]
[336594439,1724962014024,357.09,9.632e-05,2]
[336594440,1724962063601,178.11099822,0.000109,2]
[336594442,1724962168873,4902.49285263,0.000109,2]
[336594445,1724962232207,-1021.02570053,0.0001099,2]
[336594446,1724962232217,-74.6283165,0.0001099,2]
[336594447,1724962232230,-77.2016835,0.0001099,2]
[336594448,1724962232240,-590.16069176,0.00010999,3]
[336594449,1724962232253,-878.14339397,0.00010999,3]
[336594450,1724962232264,-150.0,0.00010999,2]
[336594451,1724962232275,-19051.65365862,0.00011,2]
[336594452,1724962232288,-7000.17256487,0.00011,2]
[336594453,1724962232300,-508.47198714,0.00011,2]
[336594454,1724962232315,-274023.37234462,0.00011,2]
[336594455,1724962232371,-418.90217464,0.00011,2]
[336594456,1724962232384,-341.42630098,0.00011,2]
[336594469,1724962238283,-544.37084928,0.00011,2]
[336594482,1724962238711,-1804.2,0.00011,2]
[336594540,1724962240281,-32741.37224146,0.00011,2]
[336594541,1724962240493,-1638.10933412,0.00011,2]
[336594542,1724962240547,-2096.3051112,0.00011,2]
[336594747,1724962243322,-29770.87888,0.00011,2]
[336594748,1724962243479,-28227.39146404,0.00011,2]
[336594752,1724962246517,-2054.13566049,0.00011,2]
[336594753,1724962246571,-329.968208,0.00011,2]
[336594754,1724962254865,150.0,0.0001089,2]
[336594755,1724962299536,176.2380285,0.000109,2]
[336594756,1724962338019,339.27558429,0.000109,2]
[336594757,1724962402323,160.08,0.00010959,2]
[336594759,1724962450148,333.28746012,0.00010897,2]
[336594760,1724962467854,339.27558427,0.000109,2]
[336594761,1724962489833,171.44570036,0.000109,2]
[336594762,1724962505591,839.2412,0.0001089,2]
[336594763,1724962508938,377.87,9.137e-05,2]
[336594764,1724962536205,176.23802848,0.000109,2]
[336594765,1724962580186,1514.4443,0.0001089,2]
[336594766,1724962580316,1514.4443,0.0001092,2]
[336594767,1724962583699,339.27558427,0.000109,2]
[336594768,1724962594988,6124.61144476,0.000109,2]
[336594769,1724962623397,279.35,0.00010939,2]
[336594770,1724962680860,150.0,0.00010849,2]
[336594771,1724962709600,1500.0,0.00010743,2]
[336594772,1724962709766,1500.0,0.00010776,2]
[336594773,1724962709818,1500.0,0.00010911,2]
[336594774,1724962719873,150.0,0.00010848,2]
[336594775,1724962720164,150.0,0.00010798,2]
[336594776,1724962739149,150.0,0.0001092,2]
[336594777,1724962739214,150.0,0.00010767,2]
[336594778,1724962739266,150.0,0.00010806,2]
[336594779,1724962739294,150.0,0.00010811,2]
[336594780,1724962750491,300.0,0.00010937,2]
[336594781,1724962750542,300.0,0.00010893,2]
[336594782,1724962750596,298.36796661,0.00010939,2]
[336594784,1724962771803,1500.0,0.00010914,2]
[336594785,1724962799685,150.0,0.00010959,2]
[336594786,1724962800909,176.23802848,0.000109,2]
[336594787,1724962828868,1500.0,0.00010804,2]
[336594788,1724962885797,1514.4443,0.000109,2]
[336594789,1724962885827,1514.4443,0.0001094,2]
[336594790,1724962886054,1514.4443,0.0001091,2]
[336594791,1724963021955,5512.15030023,0.000109,2]
[336594792,1724963027663,176.23802848,0.000109,2]
[336594793,1724963054389,160.36941333,0.000109,2]
[336594794,1724963060506,378.23,9.36e-05,2]
[336594795,1724963182125,327.3246695,0.00010941,2]
[336594796,1724963191466,1514.4443,0.0001089,2]
[336594797,1724963235285,189.55387216,0.000109,2]
[336594798,1724963313920,218.21644634,0.000109,2]
[336594799,1724963321940,756.11201824,0.000115,30]
[336594800,1724963333210,250.0,0.00010959,2]
[336594801,1724963342042,177.15776833,0.000109,2]
[336594802,1724963343377,360.05,0.00010945,2]
[336594803,1724963368996,1500.0,0.00010909,2]
[336594804,1724963377268,508.25,0.0001077,2]
[336594806,1724963412495,170.95,0.00010959,2]
[336594816,1724963431436,-150.0,0.00010968,2]
[336594817,1724963431445,-1500.0,0.00010975,2]
[336594818,1724963431455,-151.17,0.0001099,2]
[336594819,1724963431464,-394.56008022,0.00010997,2]
[336594820,1724963431603,-2475.51165097,0.00010997,2]
[336594821,1724963431660,-6376.9,0.00010997,2]
[336594822,1724963431671,-3331.88002399,0.00010997,2]
[336594826,1724963437786,-1868.96480563,0.00010997,2]
[336594828,1724963437801,-1352.07328804,0.00010997,2]
[336594830,1724963437812,-1475.64,0.00010997,2]
[336594832,1724963437825,-390.27065957,0.00010997,2]
[336594977,1724963439446,-31927.77543944,0.00010997,2]
[336594979,1724963439457,-150.0,0.00010998,2]
[336594981,1724963439466,-1500.624835,0.00010998,2]
[336594983,1724963439475,-281.47164508,0.00010999,2]
[336594985,1724963439484,-500.0,0.00010999,2]
[336594987,1724963439494,-500.0,0.00010999,2]
[336594989,1724963439503,-500.0,0.00010999,2]
[336594991,1724963439515,-199.30226172,0.00010999,2]
[336594993,1724963439525,-432.39737912,0.00010999,2]
[336594995,1724963439534,-109966.85764302,0.00011,2]
[336594997,1724963439545,-379830.8555566,0.00011,2]
[336594999,1724963439557,-14773.2789243,0.00011,2]
[336595002,1724963439573,-3895.58825898,0.00011,2]
[336595004,1724963439584,-682.60523184,0.00011,2]
[336595006,1724963439595,-2988.78326536,0.00011,2]
[336595008,1724963439606,-3948.29786507,0.00011,2]
[336595010,1724963439617,-3635.30213496,0.00011,2]
[336595012,1724963439628,-3079.4616,0.00011,2]
[336595014,1724963439639,-595.78006925,0.00011,2]
[336595016,1724963439651,-12927.31596729,0.00011,2]
[336595018,1724963439662,-26641.17337603,0.00011,2]
[336595020,1724963439674,-10036.12457798,0.00011,2]
[336595022,1724963439685,-355.72425126,0.00011,2]
[336595024,1724963439696,-598986.93938996,0.00011,2]
[336595026,1724963439707,-1127.92651515,0.00011,2]
[336595028,1724963439718,-262.06315459,0.00011,2]
[336595031,1724963439729,-310.34368319,0.00011,2]
[336595034,1724963439748,-356.19588052,0.00011,2]
[336595036,1724963439761,-24912.89410395,0.00011,2]
[336595038,1724963439772,-1490.63916087,0.00011,2]
[336595041,1724963439793,-711.3485025,0.00011,2]
[336595282,1724963442480,-1067.81353758,0.00011,2]
[336595283,1724963442492,-455.24917089,0.00011,2]
[336595284,1724963442503,-2179.86755184,0.00011,2]
[336595285,1724963442519,-9010.1475494,0.00011,2]
[336595286,1724963442532,-407.30926609,0.00011,2]
[336595287,1724963442544,-489.18296135,0.00011,2]
[336595288,1724963442555,-362.76485203,0.00011,2]
[336595289,1724963442566,-773.9542217,0.00011,2]
[336595290,1724963442582,-3172.2818176,0.00011,2]
[336595291,1724963442594,-1668.02297108,0.00011,2]
[336595292,1724963442605,-11867.08119869,0.00011,2]
[336595293,1724963442616,-35596.65073552,0.00011,2]
[336595294,1724963442628,-5958.007393,0.00011,2]
[336595295,1724963442639,-8739.00278943,0.00011,2]
[336595296,1724963442650,-2467.1499995,0.00011,2]
[336595297,1724963442662,-2558.2578458,0.00011,2]
[336595298,1724963442674,-530.05992504,0.00011,2]
[336595299,1724963442685,-1267.53629767,0.00011,2]
[336595301,1724963442698,-483.01750003,0.00011,2]
[336595303,1724963442710,-367.98323535,0.00011,2]
[336595305,1724963442722,-12754.46134342,0.00011,2]
[336595307,1724963442734,-9012.60170715,0.00011,2]
[336595309,1724963442746,-373.5132,0.00011,2]
[336595312,1724963442757,-708.29297035,0.00011,2]
[336595314,1724963442770,-579.35,0.00011,2]
[336595316,1724963442782,-242992.47263957,0.00011,2]
[336595318,1724963442793,-571.48088153,0.00011,2]
[336595577,1724963445418,-281.47164508,0.00010999,2]
[336595579,1724963445429,-78.61070056,0.00011,2]
[336595581,1724963445440,-334.0386012,0.00011,2]
[336595583,1724963445451,-1078.57073008,0.00011,2]
[336595585,1724963445463,-341.13686896,0.00011,2]
[336595588,1724963445475,-914.18041574,0.00011,2]
[336595590,1724963445486,-264.83437444,0.00011,2]
[336595592,1724963445498,-1280.81103182,0.00011,2]
[336595594,1724963445510,-17614.77864084,0.00011,2]
[336595596,1724963445523,-15553.24533523,0.00011,2]
[336595598,1724963445534,-2800.21661438,0.00011,2]
[336595600,1724963445546,-888.19265486,0.00011,2]
[336595603,1724963445561,-508.5,0.00011,2]
[336595604,1724963445572,-555.0,0.00011,2]
[336595605,1724963445583,-1325.98466,0.00011,2]
[336595606,1724963445599,-300.025825,0.00011,2]
[336595607,1724963445611,-4994.61127258,0.00011,2]
[336595608,1724963445622,-1486.66666005,0.00011,2]
[336595609,1724963445661,-2733.38035353,0.00011,2]
[336595610,1724963445673,-78592.04361608,0.00011,2]
[336595611,1724963445684,-904.64662748,0.00011,2]
[336595612,1724963445696,-637.225,0.00011,2]
[336595613,1724963445708,-581.02513369,0.00011,2]
[336595614,1724963445719,-1189.02918722,0.00011,2]
[336595615,1724963445731,-1246.58900404,0.00011,2]
[336595616,1724963445742,-939.78042536,0.00011,2]
[336595737,1724963449257,4960.93527027,0.000109,2]
[336595738,1724963488833,1500.0,0.00010845,2]
[336595739,1724963594752,379.46,9.543e-05,2]
[336595740,1724963677855,1268.44968028,0.00010899,2]
[336595743,1724963873358,4464.84174318,0.000109,2]
[336595744,1724963894382,152.52,0.00010959,2]
[336595745,1724963942394,1000.0,0.00010608,2]
[336595746,1724964006549,890.83,0.00010638,2]
[336595747,1724964012004,603.91,0.00010637,2]
[336595748,1724964029002,1500.0,0.00010947,2]
[336595749,1724964029056,1500.0,0.00010882,2]
[336595750,1724964029110,1500.0,0.00010833,2]
[336595751,1724964031991,175.84,0.00010638,2]
[336595752,1724964105456,10000.0,0.00010591,2]
[336595753,1724964127168,521.06,0.00010606,2]
[336595754,1724964143088,380.63,8.683e-05,2]
[336595755,1724964143315,380.63,0.00010947,2]
[336595756,1724964171464,175.96,7.9e-05,2]
[336595757,1724964209479,150.0,0.00010959,2]
[336595758,1724964218755,2000.0,0.00010959,2]
[336595759,1724964218887,3010.36,0.0001,2]
[336595760,1724964294667,250.0,0.00010635,2]
[336595761,1724964300546,4018.35756888,0.000109,2]
[336595762,1724964314248,250.0,0.00010959,2]
[336595763,1724964340073,1500.0,0.00010959,2]
[336595764,1724964361154,160.36941333,0.00010921,2]
[336595766,1724964383680,195.96,0.00010959,2]
[336595767,1724964399422,250.0,0.00010684,2]
[336595768,1724964420623,23900.0,0.00010698,2]
[336595769,1724964425296,2000.0,0.00010703,2]
[336595770,1724964437269,200.0,0.00010756,2]
[336595771,1724964494722,153.65,0.00010949,2]
[336595772,1724964494992,153.65,0.00010952,2]
[336595773,1724964495213,153.65,0.00010955,2]
[336595774,1724964495461,153.65,0.00010958,2]
[336595775,1724964495663,153.65,0.00010961,2]
[336595776,1724964549752,3848.78,0.00010105,2]
[336595777,1724964560848,-153.65,0.00010963,2]
[336595779,1724964560880,-153.65,0.00010966,2]
[336595780,1724964560908,-153.65,0.00010969,2]
[336595782,1724964560936,-153.65,0.00010972,2]
[336595783,1724964560964,-153.65,0.00010975,2]
[336595785,1724964560991,-153.65,0.00010978,2]
[336595786,1724964561018,-153.65,0.00010981,2]
[336595787,1724964561044,-153.65,0.00010984,2]
[336595788,1724964561069,-153.65,0.00010986,2]
[336595789,1724964561094,-1466.28486048,0.00010988,2]
[336595790,1724964561131,-33.71513952,0.00010988,2]
[336595791,1724964561156,-708.62,0.00010988,2]
[336595792,1724964561182,-299.99,0.00010988,2]
[336595793,1724964561209,-153.65,0.00010989,2]
[336595794,1724964561235,-151.17,0.0001099,2]
[336595795,1724964561260,-1501.98972096,0.0001099,2]
[336595796,1724964561296,-1530.64831789,0.0001099,2]
[336595797,1724964585304,445.41,0.00010739,2]
[336595798,1724964596263,1520.11,0.00010739,2]
[336595799,1724964609768,172.1,0.00010739,2]
[336595800,1724964628454,177.15776832,0.00010901,2]
[336595807,1724964631587,-484.55762474,0.0001099,2]
[336595808,1724964631600,-1111.11558354,0.0001099,2]
[336595809,1724964631610,-151.18,0.0001099,2]
[336595810,1724964631619,-153.65,0.00010992,2]
[336595811,1724964631629,-153.65,0.00010995,2]
[336595812,1724964631639,-153.65,0.00010998,2]
[336595813,1724964631648,-187.64776338,0.00010999,2]
[336595814,1724964631658,-150.0,0.00010999,2]
[336595815,1724964631668,-578.0,0.00011,2]
[336595816,1724964631679,-4816.27979287,0.00011,2]
[336595817,1724964631694,-16079.02632499,0.00011,2]
[336595818,1724964631705,-350.32776629,0.00011,2]
[336595819,1724964631718,-1042.5,0.00011,2]
[336595820,1724964631729,-3347.07412977,0.00011,2]
[336595821,1724964631740,-15961.64896938,0.00011,2]
[336595822,1724964631752,-377.86782155,0.00011,2]
[336595823,1724964631764,-1446.28093608,0.00011,2]
[336595824,1724964631778,-482.99531256,0.00011,2]
[336595825,1724964631790,-916.50168511,0.00011,2]
[336595827,1724964637758,-150.01,0.00010999,2]
[336595828,1724964637767,-555.3046958,0.00011,2]
[336595829,1724964637781,-8269.0,0.00011,2]
[336595830,1724964637793,-339.1733676,0.00011,2]
[336595831,1724964637811,-322.19880319,0.00011,2]
[336595832,1724964637822,-280.81762613,0.00011,2]
[336595833,1724964637838,-12851.8,0.00011,2]
[336595834,1724964637850,-1710.00000005,0.00011,2]
[336595835,1724964637862,-1351.70136552,0.00011,2]
[336595836,1724964637873,-8173.52989368,0.00011,2]
[336595837,1724964637925,-1200.0,0.00011,2]
[336595838,1724964637940,-28686.90924801,0.00011,2]
[336595839,1724964637951,-9005.59263688,0.00011,2]
[336595840,1724964637984,-758.11221771,0.00011,2]
[336595841,1724964637995,-1044.71571817,0.00011,2]
[336596001,1724964639594,-77575.53979278,0.00011,2]
[336596003,1724964639605,-595.6635026,0.00011,2]
[336596005,1724964639616,-4006.37429479,0.00011,2]
[336596009,1724964639649,-3419.99457149,0.00011,2]
[336596016,1724964639706,-1801.035773,0.00011,2]
[336596018,1724964639719,-562.53,0.00011,2]
[336596023,1724964639762,-430.83949475,0.00011,2]
[336596323,1724964642807,-591.0,0.00011,2]
[336596325,1724964642816,-4317.26999999,0.00011,2]
[336596327,1724964642828,-1399.85650094,0.00011,2]
[336596329,1724964642840,-1056.06830296,0.00011,2]
[336596331,1724964642852,-100000.0,0.00011,2]
[336596472,1724964645629,-940.87063428,0.00011,2]
[336596473,1724964647261,362.66,8.886e-05,2]
[336596474,1724964690349,1292.66032082,0.00010918,2]
[336596475,1724964692712,5494.0,0.000107,3]
[336596476,1724964725839,3616.52181201,0.000109,2]
[336596477,1724964923531,250.0,0.00010933,2]
[336596478,1724964932907,1346.8792,0.0001089,2]
[336596479,1724964958145,163.67346564,0.000109,2]
[336596480,1724964992247,840.0,0.00010922,2]
[336596481,1724965116555,173.85,0.00010684,2]
[336596482,1724965155875,3254.8696308,0.000109,2]
[336596484,1724965213671,384.55,8.794e-05,2]
[336596486,1724965230700,352.01,0.00010733,2]
[336596487,1724965261011,2101.9998,0.00010878,2]
[336596489,1724965359056,150.0,0.00010924,2]
[336596490,1724965391296,1500.0,0.00010959,2]
[336596491,1724965418335,250.0,0.00010766,2]
[336596494,1724965483148,328.0,0.00010733,2]
[336596495,1724965511573,400.0,0.00010714,2]
[336596497,1724965519289,160.08,0.00010959,2]
[336596498,1724965579194,335.4322,0.000109,2]
[336596499,1724965586042,2929.38266772,0.000109,2]
[336596500,1724965625380,175.84,0.00010677,2]
[336596501,1724965657677,156.4172163,0.000109,2]
[336596502,1724965659435,2501.1838,0.000109,2]
[336596505,1724965738068,1449.87,0.00010727,2]
[336596506,1724965739713,385.15,8.81e-05,2]
[336596507,1724965743621,11504.0,0.000109,5]
[336596508,1724965769322,-300.0,0.00010977,2]
[336596509,1724965769351,-2549.13486048,0.00010978,2]
[336596510,1724965769382,-944.74208561,0.00010978,2]
[336596511,1724965769413,-2849.13486048,0.00010978,2]
[336596514,1724965776626,2061.3839,0.000109,2]
[336596515,1724965786646,176.0,0.00010854,2]
[336596549,1724965832549,-344.40721085,0.00010978,2]
[336596550,1724965832560,-5346.92488879,0.00010978,2]
[336596551,1724965832575,-2110.15651431,0.00010978,2]
[336596552,1724965832587,-457.29170079,0.00010978,2]
[336596553,1724965832599,-356.88107954,0.00010978,2]
[336596555,1724965837900,-424.5,0.00010978,2]
[336596556,1724965837912,-8516.82679915,0.00010978,2]
[336596557,1724965837922,-150.0,0.00010979,2]
[336596558,1724965837931,-1321.07928456,0.0001098,2]
[336596559,1724965837943,-1567.82561455,0.0001098,2]
[336596560,1724965837954,-450.95372915,0.0001098,2]
[336596561,1724965837965,-23640.24197103,0.0001098,2]
[336596562,1724965837976,-11929.18119598,0.0001098,2]
[336596563,1724965838001,-618.75914436,0.0001098,2]
[336596564,1724965838012,-5200.0,0.0001098,2]
[336596565,1724965838036,-15796.57354427,0.0001098,2]
[336596566,1724965838046,-225.28552677,0.00010999,2]
[336596567,1724965838056,-529.0,0.00011,2]
[336596568,1724965838065,-167790.27964876,0.00011,2]
[336596569,1724965838077,-373.59450961,0.00011,2]
[336596570,1724965838089,-585.14741553,0.00011,2]
[336596571,1724965838101,-13895.0,0.00011,2]
[336596572,1724965838113,-34040.28801778,0.00011,2]
[336596573,1724965838133,-420.0,0.00011,2]
[336596574,1724965838145,-22537.18002361,0.00011,2]
[336596575,1724965838157,-796.44791203,0.00011,2]
[336596576,1724965838174,-3060.15071266,0.00011,2]
[336596577,1724965838185,-1136.8850001,0.00011,2]
[336596578,1724965838196,-914.81898883,0.00011,2]
[336596579,1724965838210,-1079.34910173,0.00011,2]
[336596580,1724965838230,-1169.55400002,0.00011,2]
[336596745,1724965839831,-89493.00286925,0.00011,2]
[336596747,1724965839843,-49719.13696804,0.00011,2]
[336596752,1724965839888,-82150.3198826,0.00011,2]
[336596759,1724965839946,-400.96,0.00011,2]
[336596765,1724965840002,-1032.75,0.00011,2]
[336596768,1724965840014,-117462.88210386,0.00011,2]
[336596769,1724965840023,-634.85454301,0.00011,2]
[336596772,1724965840034,-2727.62255209,0.00011,2]
[336596775,1724965840058,-948.88824048,0.00011,2]
[336596777,1724965840069,-4455.46178161,0.00011,2]
[336596783,1724965840122,-5184.20181618,0.00011,2]
[336596786,1724965840138,-1541.395,0.00011,2]
[336597238,1724965851862,23900.0,0.00010931,2]
[336597239,1724965854682,23227.9594,0.000109,2]
[336597240,1724965861142,1592.06824958,0.0001089,2]
[336597241,1724965863094,183.9,0.00010931,2]
[336597242,1724965889099,1500.0,0.00010959,2]
[336597243,1724965903607,176.20591623,0.00010935,2]
[336597244,1724965922768,250.0,0.00010846,2]
[336597245,1724965924978,619.94,0.00010802,2]
[336597246,1724965933934,9994.0787,0.000109,2]
[336597247,1724965937773,484.8763,0.000109,2]
[336597248,1724965999913,737.6,0.00010753,2]
[336597249,1724966011131,200.33,0.00010809,2]
[336597250,1724966011491,2636.44440093,0.000109,2]
[336597251,1724966018870,284.02316336,0.00010961,2]
[336597252,1724966023046,304.09094001,0.000109,2]
[336597253,1724966029812,250.0,0.00010959,2]
[336597254,1724966085415,129781.1686,0.000109,2]
[336597255,1724966090726,169.7,0.00010824,2]
[336597256,1724966091294,169.7,0.00010827,2]
[336597257,1724966091323,290.8652,0.000109,2]
[336597258,1724966091365,169.7,0.0001083,2]
[336597259,1724966091529,169.7,0.00010832,2]
[336597260,1724966091737,169.7,0.00010835,2]
[336597261,1724966091965,169.7,0.00010838,2]
[336597262,1724966092197,169.7,0.00010841,2]
[336597263,1724966092410,169.7,0.00010844,2]
[336597264,1724966092638,169.7,0.00010847,2]
[336597265,1724966092868,169.7,0.0001085,2]
[336597266,1724966093070,169.7,0.00010852,2]
[336597267,1724966093296,169.7,0.00010855,2]
[336597268,1724966093508,169.7,0.00010858,2]
[336597269,1724966093718,169.7,0.00010861,2]
[336597270,1724966094109,169.7,0.00010864,2]
[336597271,1724966094528,169.7,0.00010867,2]
[336597272,1724966094737,169.7,0.00010869,2]
[336597273,1724966094958,169.7,0.00010872,2]
[336597274,1724966095172,169.7,0.00010875,2]
[336597275,1724966095426,169.7,0.00010878,2]
[336597276,1724966147144,200.0,0.00010831,2]
[336597277,1724966180793,431.25,0.0001072,2]
[336597278,1724966225684,500.0,0.0001089,2]
[336597279,1724966227179,250.0,0.00010716,2]
[336597280,1724966253171,283.54,0.00010813,2]
[336597281,1724966262192,415.9,8.873e-05,2]
[336597282,1724966286012,483.0291,0.000109,2]
[336597283,1724966377201,176.0,0.00010852,2]
[336597284,1724966430231,23900.0,0.00010828,2]
[336597285,1724966439284,2372.7999609,0.000109,2]
[336597286,1724966458117,150.0,0.00010959,2]
[336597287,1724966502547,409.92,0.00010863,2]
[336597288,1724966539524,1000.0,0.000109,2]
[336597290,1724966611617,155.15,0.00010959,2]
[336597291,1724966618897,250.0,0.00010859,2]
[336597292,1724966678860,150.0,0.00010952,2]
[336597293,1724966729026,5592.39288787,0.000101,2]
[336597294,1724966737626,200.0,0.00010854,2]
[336597295,1724966753305,118629.85707831,0.00010399,2]
[336597296,1724966765547,1473.37039913,0.0001,2]
[336597297,1724966771459,413.62,8.934e-05,2]
[336597298,1724966864787,2135.51996481,0.00010899,2]
[336597299,1724966877827,920.81569175,0.0001,2]
[336597304,1724966921836,23900.0,0.00010836,2]
[336597306,1724966943601,-262.0,0.00010979,2]
[336597307,1724966943628,-300.0,0.00010979,2]
[336597308,1724966943656,-2419.99509661,0.0001098,2]
[336597309,1724966943692,-2981.99509661,0.0001098,2]
[336597310,1724966943738,-1369.60553489,0.0001098,2]
[336597311,1724966962917,156.41721627,0.000109,2]
[336597320,1724967031960,-300.0,0.00010979,2]
[336597321,1724967031969,-589.31915299,0.0001098,2]
[336597322,1724967031981,-883.54995,0.0001098,2]
[336597323,1724967031992,-846.47,0.0001098,2]
[336597324,1724967032003,-350.2299999,0.0001098,2]
[336597325,1724967032014,-10730.55001468,0.0001098,2]
[336597326,1724967032025,-11935.23239639,0.0001098,2]
[336597327,1724967032086,-1443.6854515,0.0001098,2]
[336597328,1724967032098,-2423.11071755,0.0001098,2]
[336597329,1724967032154,-11506.71936319,0.0001098,2]
[336597330,1724967032164,-10909.06374531,0.0001098,2]
[336597331,1724967032175,-7636.93301169,0.0001098,2]
[336597332,1724967032187,-534.83187124,0.0001098,2]
[336597333,1724967032222,-462.53216332,0.0001098,2]
[336597334,1724967032234,-5298.76851,0.0001098,2]
[336597335,1724967032283,-139432.81148168,0.0001098,2]
[336597337,1724967032293,-171.08649104,0.0001099,2]
[336597339,1724967032303,-650.4357614,0.00010993,2]
[336597340,1724967032313,-3051.327661,0.00010993,2]
[336597342,1724967032322,-767.26088196,0.00010999,3]
[336597343,1724967032332,-61913.76318319,0.00010999,2]
[336597347,1724967038017,-155.29391757,0.00010997,2]
[336597348,1724967038026,-774.70608243,0.00010999,2]
[336597349,1724967038038,-18952.38259017,0.00010999,2]
[336597350,1724967038078,-110784.87065713,0.00010999,2]
[336597351,1724967038087,-7106.8511517,0.00011,2]
[336597352,1724967038097,-1003.28871082,0.00011,2]
[336597353,1724967038106,-11940.60618609,0.00011,2]
[336597354,1724967038245,-6903.18681663,0.00011,2]
[336597355,1724967038256,-287.75747,0.00011,2]
[336597521,1724967039935,-2390.41155376,0.00011,2]
[336597523,1724967039947,-151574.96853399,0.00011,2]
[336597525,1724967039958,-400.07483383,0.00011,2]
[336597527,1724967039969,-745.83403878,0.00011,2]
[336597529,1724967039980,-5464.19112739,0.00011,2]